bitfinex-derivatives/quotes_SOLF0:USTF0_20240925
["timestamp","ask_amount","ask_price","bid_price","bid_amount"]
[1727280504811,3.3148,150.84,150.81,3.3152]
[1727280505009,100.52748016,150.89,150.79,22.93]
[1727280505411,100.52748016,150.89,150.81,3.3151]
[1727280505711,100.52748016,150.89,150.79,22.93]
[1727280505910,3.3145,150.85,150.81,3.3151]
[1727280506508,3.3145,150.85,150.82,3.315]
[1727280507510,3.3145,150.85,150.81,3.3151]
[1727280508211,3.3145,150.85,150.82,3.315]
[1727280508618,3.3143,150.86,150.79,22.93]
[1727280508811,3.25394719,150.89,150.82,3.3149]
[1727280509013,1.0022,150.92,150.82,3.3149]
[1727280509211,3.3145,150.85,150.82,3.3149]
[1727280509416,3.31498308,150.88,150.83,3.3148]
[1727280509616,1.0022,150.92,150.79,22.93]
[1727280510413,14.32,150.91,150.82,17.6349]
[1727280510815,3.3145,150.85,150.82,17.6349]
[1727280511415,17.70097764,150.87,150.75,3.9065]
[1727280511619,14.32,150.85,150.75,3.9065]
[1727280512119,3.33952377,150.84,150.78,14.32]
[1727280512323,14.32,150.87,150.78,14.32]
[1727280512516,17.69666644,150.87,150.78,14.32]
[1727280512815,17.69666644,150.87,150.76,14.32]
[1727280512816,14.32,150.85,150.76,14.32]
[1727280513412,14.32,150.83,150.75,2.6161]
[1727280513925,14.32,150.83,150.75,5.9325]
[1727280514317,22.94,150.84,150.75,5.9325]
[1727280514614,3.3158,150.79,150.75,5.9325]
[1727280514810,3.3158,150.79,150.76,3.3163]
[1727280515417,3.3158,150.79,150.75,5.9326]
[1727280515617,22.94,150.84,150.75,2.6161]
[1727280516119,22.94,150.84,150.75,5.9326]
[1727280516515,3.3158,150.79,150.76,3.3163]
[1727280516718,3.30503415,150.85,150.75,2.6161]
[1727280517017,3.3149,150.83,150.79,3.3155]
[1727280517427,3.3147,150.84,150.78,1.374]
[1727280517726,22.94,150.91,150.81,3.3151]
[1727280517929,3.3144,150.85,150.8,22.94]
[1727280518316,7.9039,150.93,150.84,3.3144]
[1727280518519,3.3139,150.88,150.82,22.94]
[1727280518825,1.2783,150.93,150.84,3.3144]
[1727280519415,22.94,150.91,150.83,2.7161]
[1727280519926,22.94,150.91,150.78,1.374]
[1727280520124,22.94,150.91,150.79,1.3824]
[1727280520524,22.94,150.89,150.79,1.3824]
[1727280520724,26.25255011,150.89,150.79,1.3824]
[1727280520925,3.3151,150.82,150.79,1.3824]
[1727280521717,3.3151,150.82,150.79,4.698]
[1727280522521,26.25255011,150.89,150.79,1.3824]
[1727280522522,3.3152,150.81,150.79,1.3824]
[1727280523325,3.3151,150.82,150.79,1.3824]
[1727280525328,26.25255011,150.89,150.79,1.3824]
[1727280526135,3.3154,150.8,150.79,1.3824]
[1727280527636,3.3153,150.81,150.79,1.3824]
[1727280528034,3.3154,150.8,150.79,1.3824]
[1727280529637,26.25255011,150.89,150.79,1.3824]
[1727280530338,3.3152,150.82,150.79,1.3824]
[1727280530538,26.25255011,150.89,150.79,1.3824]
[1727280531826,3.3154,150.8,150.75,22.94]
[1727280532036,26.25255011,150.89,150.76,1.3141]
[1727280532237,26.25255011,150.89,150.78,3.3158]
[1727280532438,3.3152,150.82,150.78,3.3158]
[1727280534440,3.3152,150.82,150.78,17.6458]
[1727280534648,3.3152,150.82,150.79,3.3156]
[1727280537144,14.33,150.87,150.79,3.3156]
[1727280537349,3.3146,150.84,150.81,3.3152]
[1727280537545,14.33,150.89,150.8,14.33]
[1727280537740,17.70114427,150.89,150.8,14.33]
[1727280538246,17.70114427,150.89,150.78,14.33]
[1727280538247,14.33,150.88,150.78,14.33]
[1727280538447,14.33,150.86,150.76,1.3141]
[1727280538643,1.0014,150.87,150.77,3.316]
[1727280538848,14.33,150.85,150.77,3.316]
[1727280539755,3.3153,150.81,150.78,3.3158]
[1727280540251,3.3149,150.83,150.79,3.3155]
[1727280540568,3.3149,150.83,150.79,14.33]
[1727280540744,1.2899,150.86,150.79,14.33]
[1727280541159,14.33,150.85,150.77,14.33]
[1727280541854,14.33,150.85,150.78,3.3158]
[1727280542448,3.3152,150.82,150.78,3.3158]
[1727280543246,3.3153,150.81,150.78,3.3158]
[1727280544856,3.3155,150.8,150.78,3.3158]
[1727280545461,3.3155,150.8,150.77,3.316]
[1727280545649,3.3155,150.8,150.76,1.3141]
[1727280545850,3.3154,150.81,150.77,14.33]
[1727280546355,3.3155,150.8,150.78,3.3158]
[1727280546951,3.3155,150.8,150.77,17.6459]
[1727280547551,3.3155,150.8,150.78,3.3158]
[1727280548355,14.33,150.85,150.77,17.646]
[1727280548956,3.3155,150.8,150.78,3.3158]
[1727280549462,3.3155,150.8,150.77,14.33]
[1727280550760,3.3155,150.8,150.78,3.3158]
[1727280552459,14.33,150.85,150.79,3.3157]
[1727280552664,1.2899,150.86,150.77,14.33]
[1727280552862,14.33,150.87,150.79,14.33]
[1727280553068,17.72502487,150.89,150.77,3.34914422]
[1727280553261,3.39502487,150.89,150.81,14.33]
[1727280553560,14.33,150.91,150.81,14.33]
[1727280553762,14.33,150.91,150.82,3.3149]
[1727280554059,8.9622,150.93,150.82,3.3149]
[1727280554060,14.33,150.89,150.82,3.3149]
[1727280554261,14.33,150.88,150.79,14.33]
[1727280554567,14.33,150.88,150.77,14.33]
[1727280554764,3.3153,150.81,150.78,3.3158]
[1727280556762,2.3366,150.87,150.78,14.33]
[1727280556968,3.28347814,150.88,150.8,14.33]
[1727280557168,20.9568,150.9,150.8,14.33]
[1727280557358,3.3144,150.85,150.83,3.3147]
[1727280558570,3.3144,150.85,150.82,3.3149]
[1727280560268,6.65018477,150.86,150.83,3.3147]
[1727280560468,3.3142,150.86,150.83,3.3147]
[1727280560669,14.33,150.92,150.82,14.33]
[1727280561365,14.33,150.9,150.8,14.33]
[1727280562271,3.3145,150.85,150.8,14.33]
[1727280563573,3.3145,150.85,150.82,3.315]
[1727280563976,3.37864996,150.86,150.8,14.33]
[1727280564172,14.33,150.9,150.81,3.3151]
[1727280564373,3.3142,150.86,150.8,14.33]
[1727280564867,3.33200527,150.87,150.8,14.33]
[1727280565067,3.3143,150.86,150.82,14.33]
[1727280565468,3.28061102,150.88,150.83,3.3147]
[1727280565769,14.33,150.9,150.83,3.3147]
[1727280565974,14.33,150.9,150.82,14.33]
[1727280566270,14.33,150.92,150.82,14.33]
[1727280566868,3.3139,150.87,150.84,3.3144]
[1727280567370,3.37687562,150.88,150.8,14.33]
[1727280567665,14.33,150.9,150.8,14.33]
[1727280568068,3.3139,150.87,150.82,3.3149]
[1727280568272,3.33907848,150.87,150.82,14.33]
[1727280568464,14.33,150.92,150.82,14.33]
[1727280569169,3.314,150.87,150.84,3.3144]
[1727280569579,3.28404055,150.89,150.84,3.3144]
[1727280569771,3.3138,150.88,150.84,3.3144]
[1727280569973,3.36924988,150.88,150.84,3.3144]
[1727280570173,14.33,150.92,150.84,3.3144]
[1727280570377,14.33,150.92,150.83,4.706]
[1727280570568,14.33,150.92,150.83,1.3914]
[1727280570870,3.3141,150.87,150.83,1.3914]
[1727280571478,3.3141,150.87,150.84,3.3145]
[1727280573071,3.3138,150.88,150.85,3.3143]
[1727280573578,3.3135,150.89,150.86,3.314]
[1727280574277,3.3135,150.89,150.85,3.3142]
[1727280574571,3.3133,150.9,150.84,14.33]
[1727280574775,2.2939,150.93,150.86,3.3139]
[1727280575374,2.2939,150.93,150.86,14.33]
[1727280575573,1.2906,150.93,150.86,14.33]
[1727280575877,1.2906,150.93,150.86,17.6441]
[1727280576279,9.16,150.92,150.87,9.16]
[1727280576772,9.16,150.92,150.87,12.4738]
[1727280577868,3.3134,150.9,150.87,9.16]
[1727280578572,3.3135,150.89,150.87,9.16]
[1727280578966,1.0031,150.96,150.87,12.4739]
[1727280579170,9.16,150.93,150.87,12.4739]
[1727280579372,9.16,150.93,150.87,9.16]
[1727280579578,9.16,150.9,150.83,1.3914]
[1727280579878,3.32040572,150.89,150.85,9.16]
[1727280580273,3.32040572,150.89,150.86,9.16]
[1727280580579,3.3138,150.88,150.86,9.16]
[1727280581368,3.33598514,150.89,150.87,9.16]
[1727280581667,9.16,150.92,150.85,3.3143]
[1727280581874,3.3138,150.88,150.86,9.16]
[1727280583676,3.3139,150.87,150.86,9.16]
[1727280584382,3.3138,150.88,150.86,9.16]
[1727280585381,3.3139,150.87,150.86,9.16]
[1727280586079,3.3139,150.87,150.85,9.16]
[1727280586386,3.33565367,150.89,150.8,1.3845]
[1727280586387,9.16,150.86,150.81,9.16]
[1727280587075,3.37830935,150.85,150.81,9.16]
[1727280587373,3.3147,150.84,150.81,9.16]
[1727280587880,6.66797599,150.86,150.83,9.16]
[1727280589377,3.3143,150.85,150.83,9.16]
[1727280589574,6.6254,150.93,150.82,9.16]
[1727280589777,9.16,150.87,150.82,9.16]
[1727280589978,12.43397532,150.87,150.81,9.16]
[1727280590373,9.16,150.84,150.79,10.536]
[1727280590575,3.3149,150.83,150.79,10.536]
[1727280590772,3.3149,150.83,150.81,9.16]
[1727280590973,3.34029712,150.85,150.82,9.16]
[1727280591171,3.3145,150.85,150.82,9.16]
[1727280591369,3.30813105,150.86,150.82,9.16]
[1727280591575,9.16,150.88,150.84,9.16]
[1727280591979,9.16,150.89,150.84,9.16]
[1727280592272,3.33333333,150.89,150.85,9.16]
[1727280592479,9.16,150.9,150.85,9.16]
[1727280593579,3.3138,150.88,150.85,9.16]
[1727280593783,6.64945459,150.88,150.85,9.16]
[1727280594082,3.3138,150.88,150.85,9.16]
[1727280594291,3.3139,150.87,150.85,9.16]
[1727280595177,3.3139,150.87,150.79,1.376]
[1727280595178,9.16,150.87,150.82,9.16]
[1727280595381,9.16,150.87,150.83,9.16]
[1727280595584,3.3143,150.86,150.83,9.16]
[1727280595986,9.16,150.87,150.83,9.16]
[1727280596289,9.16,150.87,150.79,1.376]
[1727280596290,9.16,150.84,150.8,9.16]
[1727280596592,3.315,150.82,150.8,9.16]
[1727280596781,9.16,150.84,150.8,9.16]
[1727280596983,9.16,150.85,150.8,9.16]
[1727280597388,3.3147,150.84,150.81,9.16]
[1727280597690,6.57730474,150.84,150.81,9.16]
[1727280599090,3.3147,150.84,150.81,9.16]
[1727280599692,3.3144,150.85,150.82,9.16]
[1727280599897,3.33742159,150.88,150.83,9.16]
[1727280600097,9.16,150.91,150.86,9.16]
[1727280600894,9.16,150.91,150.84,10.5172]
[1727280601097,9.16,150.91,150.86,9.16]
[1727280601293,3.3134,150.9,150.86,9.16]
[1727280601495,97.11482338,150.95,150.87,9.16]
[1727280601697,9.16,150.93,150.87,9.16]
[1727280603303,3.3133,150.9,150.87,9.16]
[1727280605201,9.16,150.9,150.85,1.3124]
[1727280605397,97.11482338,150.95,150.85,1.3124]
[1727280605398,12.54626267,150.89,150.85,1.3124]
[1727280605597,3.3139,150.88,150.85,1.3124]
[1727280605798,9.16,150.89,150.85,1.3124]
[1727280605998,12.47631638,150.89,150.85,1.3124]
[1727280606199,3.3138,150.88,150.85,4.6266]
[1727280606599,3.3138,150.88,150.85,1.3124]
[1727280606802,3.3139,150.87,150.85,1.3124]
[1727280607107,3.31631638,150.89,150.85,1.3124]
[1727280607301,9.16,150.9,150.85,4.6267]
[1727280607700,3.3138,150.88,150.85,1.3124]
[1727280607901,3.3138,150.88,150.8,1.3962]
[1727280607902,9.16,150.86,150.8,1.3962]
[1727280608097,3.23211562,150.85,150.8,11.9097]
[1727280608303,9.16,150.84,150.8,2.7497]
[1727280608502,12.40877974,150.84,150.8,1.3535]
[1727280608700,3.3149,150.83,150.8,1.3535]
[1727280608905,12.40877974,150.84,150.8,1.3535]
[1727280609101,2.2907,150.9,150.82,9.16]
[1727280609308,3.3145,150.85,150.82,9.16]
[1727280609502,3.24944289,150.84,150.81,9.16]
[1727280609711,9.16,150.86,150.82,3.3149]
[1727280609908,12.4742,150.86,150.82,3.3149]
[1727280610215,12.46813181,150.86,150.82,3.3149]
[1727280610409,12.46813181,150.86,150.81,9.16]
[1727280610914,9.16,150.84,150.8,1.3535]
[1727280611309,9.16,150.83,150.8,1.3535]
[1727280611511,12.45220563,150.83,150.8,1.3535]
[1727280612317,15.76710563,150.83,150.8,1.3535]
[1727280612514,9.16,150.82,150.7,6.6352]
[1727280612715,9.16,150.82,150.77,9.16]
[1727280613115,12.51588723,150.82,150.77,9.16]
[1727280613409,9.16,150.81,150.76,9.16]
[1727280613911,3.24179104,150.81,150.77,9.16]
[1727280614115,9.16,150.85,150.8,9.16]
[1727280614517,14.33,150.86,150.77,14.33]
[1727280615115,14.33,150.86,150.79,3.3156]
[1727280615817,3.3149,150.83,150.79,3.3156]
[1727280616419,3.315,150.82,150.79,3.3156]
[1727280616812,3.39126227,150.81,150.75,15.636]
[1727280617010,34.29,150.88,150.75,1.306]
[1727280617011,3.3156,150.8,150.75,1.306]
[1727280618013,3.3156,150.8,150.77,3.316]
[1727280620019,3.3161,150.78,150.75,1.306]
[1727280620719,3.3161,150.78,150.76,3.3162]
[1727280621116,3.3157,150.79,150.76,3.3162]
[1727280621515,3.3165,150.75,150.74,1.2763]
[1727280621715,14.33,150.78,150.7,1.3333]
[1727280621913,14.33,150.76,150.7,1.3333]
[1727280622113,17.68987261,150.76,150.7,1.3333]
[1727280622315,3.35987261,150.76,150.68,1.3823]
[1727280622622,14.33,150.76,150.69,3.3177]
[1727280622918,14.33,150.76,150.68,1.3823]
[1727280622919,3.2610138,150.76,150.68,15.7123]
[1727280623118,14.33,150.78,150.69,2.7312]
[1727280623317,6.707488,150.77,150.7,14.33]
[1727280623523,3.3161,150.77,150.7,14.33]
[1727280623824,14.33,150.8,150.7,14.33]
[1727280624024,3.3164,150.76,150.7,14.33]
[1727280624323,14.33,150.78,150.69,2.7312]
[1727280624519,3.3167,150.75,150.69,2.7312]
[1727280624718,14.33,150.76,150.69,6.0489]
[1727280625119,3.3168,150.74,150.69,6.0489]
[1727280625418,14.33,150.78,150.69,2.7312]
[1727280625619,3.3166,150.75,150.69,2.7312]
[1727280625924,14.33,150.8,150.7,14.33]
[1727280626119,17.70790601,150.8,150.7,14.33]
[1727280626317,3.3163,150.76,150.7,14.33]
[1727280626625,17.70790601,150.8,150.7,14.33]
[1727280627228,3.316,150.78,150.74,3.3167]
[1727280627527,17.70790601,150.8,150.74,3.3167]
[1727280627922,3.316,150.78,150.74,3.3167]
[1727280628921,3.3161,150.77,150.74,3.3167]
[1727280629527,3.316,150.78,150.74,3.3167]
[1727280629726,3.37790601,150.8,150.73,14.33]
[1727280629923,14.33,150.82,150.73,14.33]
[1727280630122,3.3156,150.8,150.73,14.33]
[1727280630428,3.37005574,150.8,150.74,14.33]
[1727280630629,97.17792281,150.83,150.75,1.3356]
[1727280630831,97.17792281,150.83,150.77,3.3159]
[1727280631222,3.3153,150.81,150.77,3.3159]
[1727280631517,6.64100329,150.81,150.77,3.3159]
[1727280631718,3.3153,150.81,150.77,3.3159]
[1727280632424,6.55574585,150.81,150.77,3.3159]
[1727280635429,3.24044585,150.81,150.75,5.9724]
[1727280635617,14.33,150.82,150.75,5.9724]
[1727280636022,3.3158,150.79,150.75,5.9724]
[1727280636222,6.57063271,150.79,150.75,5.9724]
[1727280636619,3.3154,150.8,150.75,2.6559]
[1727280636927,97.17792281,150.83,150.75,2.6559]
[1727280637133,97.17792281,150.83,150.76,14.33]
[1727280637325,3.3152,150.81,150.78,3.3159]
[1727280638228,6.60451457,150.81,150.77,3.316]
[1727280639232,6.60451457,150.81,150.78,3.3158]
[1727280639434,3.3151,150.82,150.75,2.6559]
[1727280639624,3.3151,150.82,150.75,3.9541]
[1727280639924,3.3151,150.82,150.78,3.3157]
[1727280640320,100.49282281,150.83,150.76,14.33]
[1727280641020,97.17792281,150.83,150.76,14.33]
[1727280641228,1.3141,150.87,150.79,14.33]
[1727280641423,15.6441,150.87,150.76,14.33]
[1727280642039,14.33,150.85,150.75,18.2841]
[1727280642534,14.33,150.82,150.75,18.2841]
[1727280642727,3.30536135,150.81,150.75,18.2841]
[1727280642927,6.62066135,150.81,150.77,3.316]
[1727280644536,6.62066135,150.81,150.75,2.6559]
[1727280644537,17.63536135,150.81,150.75,2.6559]
[1727280645036,3.3158,150.79,150.76,3.3162]
[1727280645832,17.63536135,150.81,150.75,2.6559]
[1727280645833,3.30536135,150.81,150.75,16.9859]
[1727280646039,14.33,150.83,150.75,16.9859]
[1727280646235,3.3153,150.81,150.77,3.316]
[1727280646430,6.55056325,150.81,150.75,16.9859]
[1727280646830,6.55056325,150.81,150.77,3.3159]
[1727280648530,6.55056325,150.81,150.78,3.3159]
[1727280648732,3.3155,150.8,150.78,3.3159]
[1727280650736,3.3153,150.81,150.78,3.3159]
[1727280652139,3.315,150.82,150.79,3.3157]
[1727280652338,12.485,150.82,150.79,3.3157]
[1727280652734,12.485,150.82,150.78,12.4858]
[1727280652939,3.3153,150.81,150.78,12.4858]
[1727280653830,12.4855,150.8,150.77,3.316]
[1727280655442,9.17,150.8,150.75,11.8259]
[1727280655832,9.17,150.79,150.75,2.6559]
[1727280656230,3.316,150.78,150.75,5.9722]
[1727280656535,9.17,150.79,150.75,2.6559]
[1727280657436,9.17,150.77,150.56,3.05853328]
[1727280657637,9.17,150.77,150.55,9.16615067]
[1727280657638,9.17,150.7,150.65,9.17]
[1727280658138,3.3182,150.68,150.64,1.2983]
[1727280658338,9.17,150.7,150.64,10.4683]
[1727280658539,3.3177,150.7,150.67,3.3183]
[1727280658734,9.17,150.71,150.67,3.3183]
[1727280658939,9.17,150.72,150.67,9.17]
[1727280659542,3.3175,150.71,150.67,12.4882]
[1727280660547,14.33,150.74,150.66,14.33]
[1727280660749,15.6989,150.76,150.66,15.7169]
[1727280660943,3.33863903,150.77,150.69,14.33]
[1727280661141,14.33,150.78,150.69,14.33]
[1727280661347,14.33,150.78,150.7,1.2723]
[1727280661543,3.29471763,150.78,150.71,14.33]
[1727280661737,3.29471763,150.78,150.73,3.3168]
[1727280661738,3.316,150.78,150.73,3.3168]
[1727280662136,3.31961223,150.78,150.71,15.6448]
[1727280662447,15.7135,150.82,150.74,3.3166]
[1727280662636,15.7135,150.82,150.71,15.6448]
[1727280662637,19.08588879,150.82,150.71,15.6448]
[1727280662941,19.08588879,150.82,150.74,3.3167]
[1727280663648,3.3159,150.79,150.74,3.3167]
[1727280663847,19.08588879,150.82,150.74,3.3167]
[1727280664247,3.3158,150.79,150.74,3.3167]
[1727280664548,3.3158,150.79,150.75,3.3165]
[1727280665341,19.08588879,150.82,150.76,3.3163]
[1727280665342,3.3155,150.8,150.76,3.3163]
[1727280665738,17.70238879,150.82,150.71,1.3148]
[1727280665943,14.33,150.8,150.71,15.6448]
[1727280666343,3.3167,150.75,150.71,4.6322]
[1727280666750,3.35522884,150.74,150.71,1.3148]
[1727280666951,14.33,150.77,150.71,1.3148]
[1727280667342,3.3167,150.75,150.71,4.6322]
[1727280668053,17.70546705,150.77,150.7,4.5898]
[1727280668255,17.70546705,150.77,150.65,15.7279]
[1727280668256,14.33,150.74,150.65,15.7279]
[1727280668550,3.3171,150.73,150.69,3.3177]
[1727280669155,3.3171,150.73,150.7,3.3176]
[1727280669342,3.3169,150.74,150.67,15.6389]
[1727280669548,3.26363998,150.76,150.67,15.6389]
[1727280670053,14.33,150.77,150.67,15.6389]
[1727280670449,17.68722819,150.77,150.67,15.6389]
[1727280671046,3.3166,150.75,150.71,3.3172]
[1727280671755,3.3168,150.74,150.7,3.3175]
[1727280671953,17.68722819,150.77,150.7,3.3175]
[1727280672360,3.3169,150.74,150.7,3.3175]
[1727280672857,3.3169,150.74,150.67,15.6389]
[1727280673252,3.3169,150.74,150.7,3.3175]
[1727280673447,17.68722819,150.77,150.67,15.6389]
[1727280673652,14.33,150.74,150.67,1.3089]
[1727280673853,3.3172,150.72,150.68,3.3179]
[1727280674060,3.3172,150.72,150.67,1.3089]
[1727280674258,14.33,150.76,150.67,15.6389]
[1727280674459,3.3168,150.74,150.71,3.3172]
[1727280674758,14.33,150.78,150.67,15.6389]
[1727280675260,14.33,150.78,150.69,14.33]
[1727280675962,3.3166,150.75,150.71,3.3172]
[1727280676563,14.33,150.76,150.67,1.3089]
[1727280676768,14.33,150.74,150.67,1.3089]
[1727280676957,3.3178,150.7,150.67,1.3089]
[1727280677155,14.33,150.74,150.67,1.3089]
[1727280677961,3.37657874,150.73,150.67,1.3089]
[1727280679866,3.3174,150.71,150.68,3.3179]
[1727280680268,3.3174,150.71,150.67,4.6271]
[1727280680569,14.33,150.72,150.67,1.3089]
[1727280680763,14.33,150.72,150.65,1.3979]
[1727280681463,3.3177,150.7,150.65,1.3979]
[1727280682574,3.3177,150.7,150.66,3.3184]
[1727280683064,3.3179,150.69,150.66,3.3184]
[1727280683666,14.33,150.7,150.65,3.3187]
[1727280683862,14.33,150.7,150.61,4.1077]
[1727280684089,14.33,150.68,150.63,3.319]
[1727280684270,3.3186,150.66,150.63,3.319]
[1727280685271,3.3186,150.66,150.61,4.1077]
[1727280685272,14.33,150.66,150.61,1.3744]
[1727280685473,14.33,150.66,150.57,1.3626]
[1727280685674,14.33,150.66,150.57,2.6788]
[1727280686276,3.3188,150.65,150.61,3.3195]
[1727280687576,3.3191,150.64,150.6,3.3198]
[1727280689295,14.33,150.65,150.59,3.32]
[1727280689475,14.33,150.65,150.57,2.6788]
[1727280689884,3.3195,150.62,150.58,3.3202]
[1727280690277,3.3195,150.62,150.59,3.32]
[1727280692673,3.3197,150.61,150.58,3.3202]
[1727280693076,17.60655349,150.63,150.58,3.3202]
[1727280693277,17.60655349,150.63,150.57,2.6788]
[1727280693478,3.27655349,150.63,150.51,14.33]
[1727280693688,14.33,150.62,150.52,4.0338]
[1727280694074,14.33,150.62,150.53,14.33]
[1727280694381,2.3035,150.67,150.53,14.33]
[1727280694382,14.33,150.64,150.53,14.33]
[1727280694584,3.3199,150.6,150.57,3.3203]
[1727280695083,3.3197,150.61,150.58,3.3202]
[1727280695279,3.3197,150.61,150.55,14.33]
[1727280696283,3.3197,150.61,150.58,3.3201]
[1727280697090,3.3199,150.6,150.58,3.3201]
[1727280697589,17.66853433,150.64,150.54,14.33]
[1727280698487,3.3197,150.61,150.54,14.33]
[1727280698688,17.66853433,150.64,150.54,14.33]
[1727280698892,17.66853433,150.64,150.56,14.33]
[1727280698893,3.33853433,150.64,150.56,14.33]
[1727280699184,14.33,150.66,150.6,3.3197]
[1727280699185,3.3193,150.63,150.6,3.3197]
[1727280699383,6.60979063,150.63,150.6,3.3197]
[1727280699583,3.319,150.64,150.56,14.33]
[1727280699890,3.33100737,150.65,150.58,14.33]
[1727280700083,1.2972,150.67,150.59,1.328]
[1727280700284,3.3193,150.63,150.6,3.3197]
[1727280703189,3.3193,150.63,150.61,3.3196]
[1727280703489,6.71785667,150.64,150.61,3.3196]
[1727280705084,3.3189,150.65,150.61,3.3196]
[1727280705286,14.33,150.67,150.61,3.3196]
[1727280705484,17.6063246,150.67,150.61,3.3196]
[1727280705891,3.319,150.64,150.61,3.3196]
[1727280710197,14.33,150.64,150.59,1.328]
[1727280710599,3.3197,150.61,150.57,3.3203]
[1727280710797,3.3197,150.61,150.55,1.39]
[1727280711093,3.3199,150.6,150.56,3.3206]
[1727280711301,14.33,150.6,150.55,1.39]
[1727280711797,3.25384318,150.59,150.55,1.39]
[1727280712406,6.57404318,150.59,150.55,1.39]
[1727280712994,6.57404318,150.59,150.55,4.7108]
[1727280713998,3.3203,150.58,150.55,4.7108]
[1727280714999,14.33,150.62,150.55,1.39]
[1727280715494,14.33,150.62,150.58,3.3202]
[1727280715896,1.3924,150.65,150.55,1.39]
[1727280715897,14.33,150.64,150.55,1.39]
[1727280716702,3.3195,150.62,150.59,3.3199]
[1727280717397,3.3196,150.61,150.59,3.3199]
[1727280717607,3.3196,150.61,150.58,3.3202]
[1727280718205,3.32,150.6,150.55,1.39]
[1727280718407,3.32,150.6,150.52,17.0252]
[1727280718602,3.32,150.6,150.53,1.3676]
[1727280718906,3.32,150.6,150.57,3.3203]
[1727280719603,3.32,150.6,150.58,3.3202]
[1727280720206,3.3197,150.61,150.59,3.32]
[1727280720405,14.33,150.64,150.59,3.32]
[1727280720793,3.3195,150.62,150.59,3.32]
[1727280721198,3.3195,150.62,150.6,3.3198]
[1727280721604,3.3195,150.62,150.55,14.33]
[1727280722208,3.3195,150.62,150.59,3.3198]
[1727280723705,3.3195,150.62,150.6,3.3198]
[1727280724608,14.33,150.66,150.57,14.33]
[1727280725310,3.3193,150.63,150.6,3.3196]
[1727280725611,3.3193,150.63,150.57,14.33]
[1727280726509,12.4993,150.63,150.6,3.3196]
[1727280727001,9.18,150.62,150.59,3.3199]
[1727280727202,9.18,150.6,150.54,9.18]
[1727280727698,9.18,150.6,150.57,3.3204]
[1727280727699,3.3201,150.59,150.57,3.3204]
[1727280727904,9.18,150.58,150.53,10.5476]
[1727280728512,9.18,150.56,150.53,1.3676]
[1727280729509,9.18,150.56,150.55,3.3209]
[1727280730308,3.3203,150.58,150.55,3.3209]
[1727280730510,14.36,150.6,150.53,1.3676]
[1727280731204,3.3205,150.57,150.55,3.3208]
[1727280731405,14.36,150.58,150.53,1.3676]
[1727280732013,14.36,150.58,150.52,1.3833]
[1727280732014,14.36,150.57,150.52,1.3833]
[1727280732313,14.36,150.55,150.46,14.36]
[1727280732810,14.36,150.55,150.45,3.9587]
[1727280733009,3.30875154,150.58,150.48,3.3223]
[1727280733010,3.3219,150.51,150.48,3.3223]